Cogmind - Beta 16.1 @@@ ROGUE MODE // 2026.04.29 @ 21:10:14 Player: The Overplayer Result: Destroyed by 16-YM3(R) with Subdweller Machine Gun Performance ------------- Evolutions (0) 0 Regions Visited (2) 400 Robots Destroyed (26) 130 Value Destroyed (473) 473 Prototype IDs (0) 0 Alien Tech Used (0) 0 Bonus (0) 0 TOTAL SCORE: 1003 Bonus ------- None Cogmind --------- Core Integrity 0/250 Matter 274/300 Energy 99/100 System Corruption 4% Temperature Cool (0) Movement Core (50) Location -10/Subcaves Parts ------- > --- POWER (1) -------- (None) > --- PROPULSION (2) --- (None) > --- UTILITY (2) ------ (None) > --- WEAPON (2) ------- (None) > --- INVENTORY (5) ---- Reinforced Ion Engine Terrain Scan Processor Core Shielding Core Shielding Hacking Suite Peak State ------------ > --- POWER ------------ Reinforced Ion Engine > --- PROPULSION ------- Light Treads Light Treads > --- UTILITY ---------- Large Storage Unit Seismic Detector > --- WEAPON ----------- Shotgun Shotgun > --- INVENTORY -------- Reinforced Ion Engine Large Storage Unit Structural Scanner Sensor Array Signal Interpreter Terrain Scanner Terrain Scan Processor Seismic Detector Core Shielding Core Shielding Heavy EM Pulse Gun Heavy EM Pulse Gun Shotgun Flail [Rating: 12] Favorites ----------- Power Reinforced Ion Engine Engine Reinforced Ion Engine Propulsion Light Treads Treads Light Treads Leg Aluminum Leg Wheel Wheel Utility Seismic Detector Device Seismic Detector Storage Small Storage Unit Protection Scrap Shield Weapon Shotgun Energy Gun Medium Laser Ballistic Gun Shotgun Impact Weapon Flail Build | -11 -10 -10 ------- Run | Yrd Mat Sub Slots Evolved . | . . . Power . | . . . Propulsion . | . . . Utility . | . . . Weapon . | . . . Parts Attached 22 | 9 10 3 Power 2 | 1 1 . Engine 2 | 1 1 . Core . | . . . Reactor . | . . . Propulsion 6 | 4 2 . Treads 2 | . 2 . Leg 2 | 2 . . Wheel 2 | 2 . . Hover . | . . . Flight . | . . . Utility 5 | 2 2 1 Device 1 | 1 . . Storage 3 | 1 2 . Processor . | . . . Hackware . | . . . Protection 1 | . . 1 Artifact . | . . . Weapon 9 | 2 5 2 Energy Gun 4 | 2 . 2 Energy Cannon . | . . . Ballistic Gun 4 | . 4 . Ballistic Cannon . | . . . Launcher . | . . . Special Weapon . | . . . Impact Weapon 1 | . 1 . Slashing Weapon . | . . . Piercing Weapon . | . . . Special Melee Weapon . | . . . Unidentified Prototypes . | . . . Parts Lost 9 | . . 9 Power 1 | . . 1 Propulsion 2 | . . 2 Utility 2 | . . 2 Weapon 4 | . . 4 Highest Loss Streak 9 | . . 9 To Critical Strikes 1 | . . 1 Average Backups 9 | 3 9 13 Power 1 | . 1 1 Propulsion . | 3 . . Utility 4 | . 3 8 Weapon 3 | . 3 3 Tool/Special . | . . . Unused Backups 16 | . 5 11 Power 3 | . 2 1 Propulsion 1 | . 1 . Utility 11 | . 1 10 Weapon 1 | . 1 . Tool/Special . | . . . Average Slot Usage (%) 98 | . 99 93 Engine 13 | . 13 14 Treads 26 | . 26 24 Device 13 | . 14 12 Storage 13 | . 14 13 Ballistic Gun 26 | . 26 24 Peak Build Rating 12 | 7 12 12 Average Rating 10 | 5 11 11 On Entrance 6 | . 7 12 Avg Prop Armor Cover (%) . | . . . Naked Turns 2 | . . 2 Heaviest Build 37 | 12 37 37 Greatest Support 40 | 20 40 40 Greatest Overweight (x) 11 | . 1 11 Average Overweight (x) . | . . . Largest Inventory Capacity 15 | 8 15 15 Average Capacity 10 | 7 9 14 Most Carried 15 | 7 15 15 Average Carried 9 | 4 9 14 Final Capacity 15 | 8 15 5 Final Carried 15 | 7 15 5 Class Distribution -------------------- 100% | Mutant Dominant Class ---------------- Mutant | -10/Materials Mutant | -10/Subcaves Resources | -11 -10 -10 ----------- Run | Yrd Mat Sub Matter Collected 658 | 265 393 . Remotely . | . . . Salvage Created 757 | 82 524 151 Parts 50 | 4 41 5 Haulers Intercepted 1 | . 1 . Recyclers Shooed 1 | . 1 . Parts Field Recycled . | . . . Retrieved Matter . | . . . Parts Self-Destructed 1 | . . 1 Prevented . | . . . Parts Restored . | . . . Kills | -11 -10 -10 ------- Run | Yrd Mat Sub Combat Hostiles Destroyed 17 | . 14 3 Guns 17 | . 14 3 Classes Destroyed 9 | 2 6 1 Builder 1 | . 1 . Tunneler 2 | 2 . . Hauler 1 | . 1 . Recycler 2 | 1 1 . Operator 1 | . 1 . Watcher 2 | . 2 . Swarmer 8 | . 8 . Grunt 8 | . 6 2 Subdweller 1 | . . 1 Best Kill Streak 4 | 1 4 3 Combat Bots Only 4 | . 4 3 Max Kills in Single Turn 1 | 1 1 1 Gunslinging . | . . . Exploded . | . . . Melee . | . . . Uniques/NPCs Destroyed . | . . . Combat | -11 -10 -10 -------- Run | Yrd Mat Sub Hostile Shots Fired 109 | . 32 77 Missed 20 | . 6 14 Hits 89 | . 26 63 Projectile 89 | . 26 63 Critical Strikes 3 | . . 3 Damage Taken 1511 | . 290 1221 Core 264 | . 15 249 Absorbed by Shields . | . . . Regen/Repaired (Parts) 34 | . 34 . Core Remaining (%) 100 | 100 . . Volleys Fired 48 | 12 31 5 Largest 2 | 2 2 2 Hottest 90 | 90 46 90 Shots Fired 96 | 24 62 10 Gun 96 | 24 62 10 Cannon . | . . . Launcher . | . . . Special . | . . . Kinetic 68 | . 62 6 Thermal 24 | 24 . . Explosive . | . . . Electromagnetic 4 | . . 4 Robot Hit Streak 15 | 4 15 6 Robot Miss Streak 5 | 2 5 3 Penetration Max . | . . . Secondary Targets . | . . . Shots Hit Robots 62 | 16 38 8 Core Hits 41 | 4 32 5 Critical Kills . | . . . Critical Parts Destroyed . | . . . Critical Strikes 1 | . . 1 Destroy 1 | . . 1 Melee Attacks 2 | . 2 . Impact 2 | . 2 . Slashing . | . . . Piercing . | . . . Sneak Attacks . | . . . Combat Hostiles . | . . . Follow-up Attacks . | . . . Damage Inflicted 903 | 187 567 149 Guns 903 | 187 567 149 Cannons . | . . . Explosions . | . . . Melee . | . . . Ramming . | . . . Kinetic 663 | . 567 96 Thermal 187 | 187 . . Explosive . | . . . Electromagnetic 53 | . . 53 Impact . | . . . Slashing . | . . . Piercing . | . . . Highest Corruption 4 | . 4 4 Average Corruption 3 | . 3 4 Corruption Purged . | . . . Corruption Blocked . | . . . Effects 7 | . 4 3 Message Errors 3 | . 2 1 Matter Fused 1 | . . 1 Energy Discharges 2 | . 1 1 Data Loss (minor) 1 | . 1 . Overload Shots . | . . . Overflow Damage . | . . . Projectiles . | . . . Explosions . | . . . Melee . | . . . Knockbacks . | . . . Impact . | . . . Kinetic . | . . . Secondary . | . . . Self-Inflicted Damage . | . . . Shots . | . . . Rammed . | . . . Targets Rammed . | . . . Kicked . | . . . Crushed . | . . . Highest Temperature 90 | 90 9 3 Average Temperature 29 | 34 4 3 Received Heat Transfer 210 | . 60 150 Siege Activations . | . . . Martial Activations . | . . . Shielding Activations . | . . . Robots Disrupted . | . . . Combat Hostiles . | . . . Robots Corrupted . | . . . Combat Hostiles . | . . . Parts Fried . | . . . Impact Corruptions . | . . . Robots Melted . | . . . Combat Hostiles . | . . . Parts Melted . | . . . Heat Transferred 484 | 484 . . Parts Sabotaged . | . . . Parts Stolen . | . . . Parts Stripped . | . . . Power Chain Reactions . | . . . Alert | -11 -10 -10 ------- Run | Yrd Mat Sub Maximum Alert Level . | . . . Low Security (%) 100 | 100 100 . Level 1 . | . . . Level 2 . | . . . Level 3 . | . . . Level 4 . | . . . Level 5 . | . . . High Security . | . . . Max Security . | . . . Peak Influence 186 | 5 186 . Initial . | . . . Average 88 | . 102 . Influence Increases 505 | 15 450 40 Destroy 0b10 Robot/C 320 | . 280 40 Destroy 0b10 Robot/NC 45 | 15 30 . Destroy Leader 66 | . 66 . Successful Hack 28 | . 28 . Destroy Structure 1 | . 1 . Lose Combat Pursuer 45 | . 45 . Influence Decreases 505 | 15 337 153 Entered New Map 55 | . . 55 Time Decay 410 | 15 337 58 Lost Part 40 | . . 40 Squads Dispatched 3 | . 3 . Investigation 1 | . 1 . Extermination . | . . . Reinforcement 2 | . 2 . Assault . | . . . Garrison . | . . . Intercept . | . . . Searches Triggered . | . . . Construction Impeded . | . . . Haulers Reinforced . | . . . Active Scanning Responses . | . . . Cargo Convoy Interrupts . | . . . Stealth | -11 -10 -10 --------- Run | Yrd Mat Sub Distress Signals 1 | . 1 . Communications Jammed . | . . . Distress Signals . | . . . Times Spotted 37 | . 22 15 Peak Tracking Total 13 | . 4 13 Tactical Retreats 2 | . 2 . Traps | -11 -10 -10 ------- Run | Yrd Mat Sub Traps Triggered 6 | . 6 . Indirectly . | . . . Trap Hack Attempts . | . . . Triggered . | . . . Disarmed . | . . . Reprogrammed . | . . . Reused . | . . . Traps Extracted . | . . . Installed . | . . . Triggered . | . . . Machines | -11 -10 -10 ---------- Run | Yrd Mat Sub Machines Disabled . | . . . Max in Single Turn . | . . . Machines Repaired . | . . . Machines Dismantled . | . . . Machines Sabotaged . | . . . Overloaded Fab Kills . | . . . Hacking | -11 -10 -10 --------- Run | Yrd Mat Sub Machines Accessed 8 | . 8 . Terminals 5 | . 5 . Fabricators . | . . . Repair Stations 1 | . 1 . Recycling Units 2 | . 2 . Scanalyzers . | . . . Garrison Access . | . . . Total Hacks 25 | . 25 . Successful 14 | . 14 . Failed 11 | . 11 . Catastrophic 1 | . 1 . Database Lockouts . | . . . Manual 10 | . 10 . Terminals 19 | . 19 . Fabricators . | . . . Repair Stations 2 | . 2 . Recycling Units 4 | . 4 . Scanalyzers . | . . . Garrison Access . | . . . Terminal Hacks 5 | . 5 . Maintenance Status 1 | . 1 . Hauler Manifests 1 | . 1 . Registered Components 1 | . 1 . Zone Layout 2 | . 2 . Fabricator Hacks . | . . . Repair Station Hacks 2 | . 2 . Scan Component 1 | . 1 . Repair 1 | . 1 . Recycling Unit Hacks 2 | . 2 . Process 1 | . 1 . Retrieve Matter 1 | . 1 . Scanalyzer . | . . . Garrison Access Hacks . | . . . Unauthorized Hacks 5 | . 5 . Terminals 5 | . 5 . Botnet 2 | . 2 . Skim 3 | . 3 . Fabricators . | . . . Repair Stations . | . . . Recycling Units . | . . . Scanalyzers . | . . . Garrison Access . | . . . Data Cores Recovered 1 | . 1 . Used . | . . . Hacking Detections 7 | . 7 . Full Trace Events . | . . . Feedback Events . | . . . Feedback Blocked . | . . . Robot Schematics Acquired . | . . . Robots Built . | . . . Authchips . | . . . Time . | . . . Total Robot Build Rating . | . . . Part Schematics Acquired . | . . . Parts Built . | . . . Authchips . | . . . Time . | . . . Total Part Build Rating . | . . . Part Studies Acquired . | . . . Parts Repaired 1 | . 1 . Time 26 | . 26 . Parts Recycled . | . . . Recycled Matter 3 | . 3 . Retrieved Matter 3 | . 3 . Retrieved Components . | . . . Parts Scanalyzed . | . . . Part Schematics Acquired . | . . . Parts Damaged . | . . . Bothacking | -11 -10 -10 ------------ Run | Yrd Mat Sub Used RIF Installer . | . . . Robots Hacked . | . . . Non-combat . | . . . Combat . | . . . Robot Hacks Applied . | . . . Relay Couplers Released . | . . . Fabnet Peak Effective % . | . . . Robots Rewired . | . . . Allies Hacked . | . . . Hacks Repelled . | . . . Allies | -11 -10 -10 -------- Run | Yrd Mat Sub Total Allies . | . . . Largest Group . | . . . Highest-Rated Group . | . . . Highest-Rated Ally . | . . . Total Orders . | . . . Ally Attacks . | . . . Total Damage . | . . . Kills . | . . . Allies Corrupted . | . . . Allies Melted . | . . . Intel | -11 -10 -10 ------- Run | Yrd Mat Sub Active Infowar (turns) 1318 | 68 1098 152 Seismic 1318 | 68 1098 152 Robot Analysis Total . | . . . Derelict Logs Recovered . | . . . Drone Launches . | . . . Drone Recoveries . | . . . Exploration | -11 -10 -10 ------------- Run | Yrd Mat Sub Turns Passed 1456 | 183 1098 175 Spaces Moved 761 | 111 557 93 Core 10 | 5 . 5 Treads 635 | . 547 88 Legs 107 | 97 10 . Wheels 9 | 9 . . Hover . | . . . Flight . | . . . Fastest Speed 50 | 50 120 50 Average Speed 153 | 113 159 161 Slowest Speed 600 | 120 190 600 Overloaded Moves . | . . . Propulsion Burnouts . | . . . Robots Hopped . | . . . Potential Cave-ins . | . . . Cave-ins Triggered . | . . . Exploration Rate (%) 33 | 5 88 8 Regions Visited 2 Branch Regions 1 Pre-discovered Areas . | . . . Known Exits Taken . | . . . Unknown Exits Taken 2 | 1 1 . Scrap Searched . | . . . Spaces Dug 1 | . 1 . Terrain Destroyed 1 | . 1 . Melee 1 | . 1 . Projectile . | . . . AOE . | . . . Terrain Rammed . | . . . Walls Destroyed . | . . . Machines Disabled . | . . . Actions | -11 -10 -10 --------- Run | Yrd Mat Sub Total 955 | 141 704 110 Wait 69 | . 69 . Move 759 | 110 556 93 Hop . | . . . Pick Up 29 | 8 18 3 Fast Attach 13 | 8 4 1 Attach 3 | 1 . 2 Detach . | . . . Swap 9 | . 9 . Drop 23 | 2 15 6 Fire 48 | 12 31 5 Melee 2 | . 2 . Ram . | . . . Kick . | . . . Crush . | . . . Escape Stasis . | . . . Rewire . | . . . Trap . | . . . Miscellaneous . | . . . Route ------- -11/Scrapyard -10/Materials (discovered 4 exits: [*Mat x3] / [*Sub]) -10/Subcaves History --------- Turn | Location | Event 20 | -11/Scrapyard | Discovered new exit (range 16) 184 | -11/Scrapyard | Entered Materials 312 | -10/Materials | Build established: Mutant 348 | -10/Materials | Discovered new exit (range 5) 554 | -10/Materials | Discovered new exit (range 4) 722 | -10/Materials | Repaired Lgt. Treads 819 | -10/Materials | Discovered new exit (range 3) 869 | -10/Materials | Discovered new exit (range 6) 1282 | -10/Materials | Entered Subcaves 1420 | -10/Subcaves | Ambushed by swarm of Subdwellers 1420 | -10/Subcaves | Ambushed by Subdwellers from Twisted Machinery 1420 | -10/Subcaves | Ambushed by Subdwellers from Twisted Machinery 1420 | -10/Subcaves | Ambushed by Subdwellers from Twisted Machinery 1420 | -10/Subcaves | Ambushed by Subdwellers from Twisted Machinery 1420 | -10/Subcaves | Ambushed by Subdwellers from Twisted Machinery 1420 | -10/Subcaves | Ambushed by Subdwellers from Twisted Machinery 1440 | -10/Subcaves | Core integrity fell below 50% 1457 | -10/Subcaves | Destroyed by 16-YM3(R) with Subdweller Machine Gun Last Messages --------------- 01441_ K9-BLX(R) destroyed. 01441_ Dropped Lrg. Storage Unit. 01442_ Acquired Scrap Shield. 01443_ 45-EEH(R) destroyed. 01447_ Q5-H6K(R) affixes Scrap Shield Fragment to Scrap Shield. 01448_ 9FF2RA7|A#K&Z%SYTPLCQNWWUQAJJBTY4UH4/H8L 01449_ N3-PL8(R) destroyed. 01450_ Subatomizers dissect the Shotgun. 01451_ Critical hit (Burn: +37). 01451_ Hvy. EM Pulse Gun destroyed. 01452_ QI-OHN(R) affixes Scrap Shield Fragment to Scrap Shield. 01452_ AE-28V(R) affixes Scrap Shield Fragment to Scrap Shield. 01453_ Y-45 Defender destroyed. 01453_ Critical hit (Destroy). 01455_ Scrap Shield destroyed. 01455_ Hvy. EM Pulse Gun destroyed. 01455_ Rnf. Ion Engine destroyed. Map ----- +----------------------------------------------------+ | ??????????????????????# ## ## ## | | ??????????????????????# ### ## | | ??????????????????????# ####### # | | ?????????????????###### #?# ####?## # | | ????????????????## ### ## ### # | | ????????????????# ## ## | | ????????????????# #? | | ????????????????# #? | | ????????????????## ### ### ##? | | ?????????????????# #?######?### ##?? | | ????????????????## ##??????????## #??? | | ????????????????# ###????????????# #?? | | ????????????????# *!#######????????########?? | | ????????????????##=%[#""";#?????????????????? | | ????????????????#=%[=" &%*##????????????????? | | ??????????????### *%= = %##???????????????? | | ??????????????# ![%]%& ##??????????????? | | ??????????????## % !";;R #??????????????? | | ???????????????# """"!;#* ##??????????????? | | ???????????????########RRR R#???????????????? | | ???????????????## !%&!%%R!#???????????????? | | ???????????????# !%[!&!!R #???????????????? | | ???????????????# = /[!* ##??????????????? | | ???????????????# % #??????????????? | | ???????????????# ## ##??????????????? | | ???????????????# @ ##?##???????????????? | | ???????????????# #####???????????????????? | | ??????????????# ????????????????????????? | | ??????????????# ?????????????????????????? | | ??????????????# ?????????????????????????? | | ??????????????## ??????????????????????????? | | ???????????????# ??????????????????????????? | | ??????????????? ???????????????????????????? | | ??????????????###???????????????????????????? | | ????????????????????????????????????????????? | | ????????????????????????????????????????????? | | ????????????????????????????????????????????? | | ????????????????????????????????????????????? | | ????????????????????????????????????????????? | | ????????????????????????????????????????????? | | ????????????????????????????????????????????? | | ????????????????????????????????????????????? | | ????????????????????????????????????????????? | | ????????????????????????????????????????????? | | ????????????????????????????????????????????? | | ????????????????????????????????????????????? | | ????????????????????????????????????????????? | | ????????????????????????????????????????????? | | ????????????????????????????????????????????? | | ????????????????????????????????????????????? | +----------------------------------------------------+ Best States ------------- Heat Dissipation 25 Energy Generation 12 Energy Capacity 265 Matter Stores 293 Matter Capacity 300 Sight Range 16 Terrain Scan Density 10 Armor Coverage 800 Evasion (%) 55 Recoil Reduction 2 Item Schematics ----------------- None Robot Schematics ------------------ None Fabricated ------------ Nothing Repaired ---------- Lgt. Treads | 75% | -10/Materials Studied --------- None Alien Tech Used ----------------- None Achievements -------------- None Challenges ------------ None Game ------ Seed FieldJammingBay Manual? 0 Play Time 00:13:57 Cumulative 69.9 hours Start 2026.04.29 @ 18:02:23 End 2026.04.29 @ 21:10:14 Sessions 2 Manual Loads 0 Difficulty Rogue Special Mode None Game No. 74 Rogue 74 Adventurer 0 Explorer 0 Win Type - Total 1 Types 1/0/0/0/0/0/0/0/0/0 Lore% 25 Gallery% 44 Achievement% 38 Wizard Run 0 Options --------- Layout 1 ASCII 0 Keyboard 0 Movement Mouse Keybinds 0 Fullscreen 1 Font 24/Smallcaps Map View 50x35 Zoom Use 0% Tactical HUD 1 Map Filters NONE Filters NONE Steam 1 RUN: 892ec672-3a0a-4140-99ef-bfefc30316d6